[Event "Fall GM-B Norm Invitational 2022"]
[Site "Charlotte"]
[Date "2022.11.19"]
[Round "4"]
[White "Korley, Kassa"]
[Black "Ngo, Bach"]
[Result "1/2-1/2"]
[ECO "A06"]
[WhiteElo "2451"]
[BlackElo "2275"]
[Annotator "TA"]
[PlyCount "123"]
[EventDate "2022.11.18"]
[EventType "tourn"]
[EventCountry "USA"]
[SourceTitle "playchess.com"]
[Source "ChessBase"]
[SourceQuality "1"]
[TimeControl "5400+30"]

{[%evp 20,123,13,0,10,10,12,13,43,49,38,22,20,20,18,17,35,29,29,33,27,27,27,24,29,21,39,24,41,27,41,19,33,22,20,9,14,0,19,17,21,5,4,5,5,7,5,0,0,0,18,0,0,0,0,0,0,0,0,0,0,-3,0,0,0,0,0,0,0,0,0,0,0,0,0,0,0,0,0,0,8,8,8,8,8,8,8,0,0,0,0,0,0,0,0,0,0,0,0,0,0,0,0,0,0,0]} 1. Nf3 {[%emt 0:01:12]} d5 {[%emt 0:00:44]} 2. b3 {[%emt 0:00:56]} Nf6 {[%emt 0:00:30]} 3. Bb2 {[%emt 0:00:02]} e6 {[%emt 0:00:17]} 4. c4 {[%emt 0:01:35]} Be7 {[%emt 0:00:20]} 5. g3 {[%emt 0:01:12]} O-O {[%emt 0:00:37]} 6. Bg2 {[%emt 0:00:02]} b6 {[%emt 0:01:30]} 7. cxd5 {[%emt 0:00:15]} Nxd5 {[%emt 0:02:01]} 8. d4 {[%emt 0:02:24]} Bb7 {[%emt 0:01:08]} 9. O-O {[%emt 0:01:06]} c5 {[%emt 0:02:32]} 10. Nbd2 {[%emt 0:07:50][%cal Bb1d2,Bd2c4,Bc4e5,Be5d3][%mdl 32]} Nd7 {[%emt 0:06:36]} 11. Rc1 {[%emt 0:10:49]} Rc8 {[%emt 0:14:10] A14: English Opening: 1...e6 with b3 by White.} 12. Nc4 {[%emt 0:00:42]} b5 {[%emt 0:00:41]} 13. Nce5 {[%emt 0:01:36]} N7f6 {[%emt 0:01:08]} (13... Bf6 {looks sharper.} 14. Qd3 a6 15. dxc5 Nxc5 16. Qd4 Nd7) 14. dxc5 {[%emt 0:08:23] [#]} Bxc5 $146 {[%emt 0:00:28]} ({Predecessor:} 14... Rxc5 15. Rxc5 Bxc5 16. Nd3 Be7 17. Qa1 b4 18. Rc1 Qa5 19. Nfe5 Rd8 20. Nc6 Bxc6 21. Rxc6 {½-½ (54) Kurajica,B (2548)-Spraggett,K (2578) Seville 2006}) 15. Nd3 {[%emt 0:00:30]} (15. Ng5 {feels hotter.} Qe8 16. Qd3 Nb4 17. Qb1) 15... Be7 {[%emt 0:01:07]} 16. Rxc8 {[%emt 0:03:37]} Qxc8 {[%emt 0:01:31]} 17. Nfe5 {[%emt 0:00:02]} Nc3 {[%emt 0:17:47]} 18. Bxb7 {[%emt 0:04:06]} Nxd1 {[%emt 0:01:22]} 19. Bxc8 {[%emt 0:00:03]} Nxb2 {[%emt 0:00:10]} 20. Nc6 {[%emt 0:23:00]} (20. Rc1 {simplifies} Nxd3 21. Nxd3 a5 22. Bb7) 20... Ba3 {[%emt 0:02:56]} 21. Ba6 {[%emt 0:01:28]} Nxd3 {[%emt 0:00:49]} 22. exd3 {[%emt 0:00:01][%cal Ob3b4]} b4 {[%emt 0:00:27]} 23. Bc4 {[%emt 0:01:59]} Ra8 {[%emt 0:03:22]} 24. Rd1 {[%emt 0:01:07]} g6 {[%emt 0:08:31]} 25. Rd2 {[%emt 0:00:14]} Kg7 {[%emt 0:01:24]} 26. Rc2 {[%emt 0:00:02]} a5 {[%emt 0:01:29] The position is equal.} 27. h4 {[%emt 0:01:11]} Rc8 {[%emt 0:03:39]} 28. Nd4 {[%emt 0:06:33]} Rc5 {[%emt 0:04:15]} 29. Kf1 {[%emt 0:00:02]} Nd5 {[%emt 0:02:29]} 30. Bxd5 {[%emt 0:04:15]} Rxd5 $11 {[%emt 0:01:11][%mdl 4096] Endgame KRB-KRN} 31. Nc6 {[%emt 0:00:02]} Rxd3 {[%emt 0:01:00] [#] White must now prevent ...Rc3.} 32. Nxa5 {[%emt 0:00:15]} Rc3 {[%emt 0:00:14] Prevents Nc4.} 33. Re2 {[%emt 0:00:18]} Rc1+ {[%emt 0:02:41]} 34. Kg2 {[%emt 0:00:09]} f5 {[%emt 0:00:14]} 35. Nc4 {[%emt 0:04:35]} Kf6 {[%emt 0:00:18]} 36. f4 {[%emt 0:00:21]} h6 {[%emt 0:02:59]} 37. Rd2 {[%emt 0:01:30]} g5 {[%emt 0:00:18]} 38. Ne5 {[%emt 0:02:49]} gxf4 {[%emt 0:02:07]} 39. gxf4 {[%emt 0:00:02] Rd7 would kill now.} Rc7 {[%emt 0:06:29]} 40. Nd3 {[%emt 0:04:48]} Rd7 {[%emt 0:01:43]} 41. Rd1 {[%emt 0:01:58]} Rc7 {[%emt 0:00:44]} 42. Kf3 {[%emt 0:02:13]} Rc2 {[%emt 0:01:35]} 43. h5 {[%emt 0:01:00]} Rh2 {[%emt 0:02:02]} 44. Kg3 {[%emt 0:00:07]} Rxa2 {[%emt 0:00:14]} 45. Ne5 {[%emt 0:00:35] Threatening mate with Rd7.} Ke7 {[%emt 0:00:59]} 46. Rd7+ {[%emt 0:00:45]} Kf8 {[%emt 0:00:58]} 47. Rh7 {[%emt 0:01:30]} Rb2 {[%emt 0:01:34]} 48. Rxh6 {[%emt 0:00:09]} Rxb3+ {[%emt 0:00:06]} 49. Kh4 {[%emt 0:00:13]} Bc1 {[%emt 0:01:51]} 50. Rxe6 {[%emt 0:03:33] h6 is the strong threat.} Bxf4 {[%emt 0:00:34]} 51. Ng6+ {[%emt 0:01:03]} Kf7 {[%emt 0:00:09]} 52. Nxf4 {[%emt 0:00:11] White threatens Rb6 and mate. KRN-KR} Rf3 {[%emt 0:00:13]} 53. Kg5 {[%emt 0:00:32] White wants to mate with Rb6.} Rxf4 $1 {[%emt 0:00:14][%mdl 64] [#] KR-KR} 54. Rf6+ {[%emt 0:00:08]} (54. Kxf4 {leads to mate.} Kxe6 55. h6 Kf6 56. h7 Kg7 57. Ke3 Kxh7 58. Ke2 f4 59. Kd2 f3 60. Ke3 b3 61. Kd3 f2 62. Kc3 f1=Q 63. Kxb3 Qb5+ 64. Kc3 Kg6 65. Kd4 Kf5 66. Ke3 Qd5 67. Kf2 Qd3 68. Ke1 Kf4 69. Kf2 Qd2+ 70. Kf1 Kg3 71. Kg1 Qg2#) 54... Ke7 {[%emt 0:00:04]} 55. Rb6 {[%emt 0:00:09][%mdl 64]} Rg4+ {[%emt 0:00:30]} 56. Kxf5 {[%emt 0:00:18]} Rg1 {[%emt 0:00:07]} 57. h6 {[%emt 0:00:13]} Kf7 {[%emt 0:00:19] Inhibits h7.} 58. Rxb4 {[%emt 0:00:27]} Rf1+ {[%emt 0:00:16]} 59. Rf4 {[%emt 0:00:07]} Rxf4+ {[%emt 0:00:05]} 60. Kxf4 {[%emt 0:00:02]} Kg6 {[%emt 0:00:05]} 61. h7 {[%emt 0:00:02]} Kxh7 {[%emt 0:00:04]} 62. Ke4 {Weighted Error Value: White=0.03 (flawless) /Black=0.04 (flawless)} 1/2-1/2

[Event "Fall GM-B Norm Invitational 2022"]
[Site "Charlotte"]
[Date "2022.11.19"]
[Round "4"]
[White "Ozenir, Ekin Baris"]
[Black "Kantor, Gergely"]
[Result "1/2-1/2"]
[ECO "E10"]
[WhiteElo "2352"]
[BlackElo "2561"]
[Annotator "TA"]
[PlyCount "44"]
[EventDate "2022.11.18"]
[EventType "tourn"]
[EventCountry "USA"]
[SourceTitle "playchess.com"]
[Source "ChessBase"]
[SourceQuality "1"]
[TimeControl "5400+30"]

{[%evp 15,44,10,8,-8,7,7,0,0,0,0,0,0,-3,-10,10,8,8,19,21,14,17,19,16,16,45,41,85,40,44,28,75]} 1. d4 {[%emt 0:00:52]} Nf6 {[%emt 0:03:56]} 2. c4 {[%emt 0:00:27]} e6 {[%emt 0:00:44]} 3. Nf3 {[%emt 0:00:16]} d5 {[%emt 0:01:13]} 4. g3 {[%emt 0:00:30]} Bb4+ {[%emt 0:00:15]} 5. Bd2 {[%emt 0:00:16]} Be7 {[%emt 0:00:37]} 6. Bg2 {[%emt 0:00:12]} O-O {[%emt 0:00:10]} 7. O-O {[%emt 0:00:13]} c6 {[%emt 0:00:59]} 8. Qc2 {[%emt 0:00:09]} b6 {[%emt 0:02:32]} 9. a4 {[%emt 0:06:01] E11: Bogo-Indian.} a5 {[%emt 0:08:26]} 10. cxd5 {[%emt 0:04:07]} exd5 {[%emt 0:05:12]} 11. Ne5 {[%emt 0:02:05] The position is equal.} Bb7 {[%emt 0:00:34] [#]} 12. Nc3 $146 {[%emt 0:02:18]} ({Predecessor:} 12. Rc1 Nfd7 13. e4 Nxe5 14. dxe5 d4 15. Qb3 c5 16. Na3 Nc6 17. Nc4 Nb4 18. Bxb4 axb4 {0-1 (32) Golub,N (1828)-Svrtan,Z (2091) Hum na Sutli 2017}) 12... Na6 {[%emt 0:01:05]} 13. Rfe1 {[%emt 0:02:58]} Nb4 {[%emt 0:01:35]} 14. Qb3 {[%emt 0:03:52]} c5 {[%emt 0:08:47]} (14... Nd7 $5 {[%cal Rd7e5]}) 15. Nb5 {[%emt 0:06:20]} Ne4 {[%emt 0:02:45]} 16. Bxb4 {[%emt 0:03:45]} axb4 {[%emt 0:02:23]} 17. dxc5 {[%emt 0:02:27]} Bxc5 {[%emt 0:16:02]} ({Weaker is} 17... bxc5 18. Bxe4 dxe4 19. Red1 $16) 18. e3 {[%emt 0:02:52]} Qe7 {[%emt 0:03:00]} 19. Nd3 {[%emt 0:01:52]} g5 {[%emt 0:03:09]} 20. Rad1 {[%emt 0:05:50]} Rad8 {[%emt 0:02:12]} 21. Nd4 {[%emt 0:02:57]} Qf6 {[%emt 0:09:42]} 22. f3 {[%emt 0:05:21]} Nd6 {[%emt 0:06:43] Weighted Error Value: White=0.05 (flawless) /Black=0.10 (very precise)} (22... Bxd4 $11 23. fxe4 dxe4) 1/2-1/2

[Event "Fall GM-B Norm Invitational 2022"]
[Site "Charlotte"]
[Date "2022.11.20"]
[Round "5"]
[White "Kantor, Gergely"]
[Black "Cruz, Cristhian"]
[Result "1/2-1/2"]
[ECO "D35"]
[WhiteElo "2561"]
[BlackElo "2552"]
[Annotator "TA"]
[PlyCount "37"]
[EventDate "2022.11.18"]
[EventType "tourn"]
[EventCountry "USA"]
[SourceTitle "playchess.com"]
[Source "ChessBase"]
[SourceQuality "1"]
[TimeControl "5400+30"]

{[%evp 15,37,23,27,27,31,38,53,16,24,18,20,1,13,10,14,0,0,-5,-11,-5,-5,-7,0,-24]} 1. d4 {[%emt 0:04:12]} d5 {[%emt 0:00:53]} 2. c4 {[%emt 0:00:18]} e6 {[%emt 0:00:33]} 3. Nc3 {[%emt 0:00:29]} Nf6 {[%emt 0:01:30]} 4. cxd5 {[%emt 0:00:19]} exd5 {[%emt 0:00:16]} 5. Bg5 {[%emt 0:00:17]} Be7 {[%emt 0:01:48]} 6. e3 {[%emt 0:00:59]} c6 {[%emt 0:01:06]} 7. Bd3 {[%emt 0:02:13]} h6 {[%emt 0:01:36]} 8. Bf4 {[%emt 0:01:09]} O-O {[%emt 0:04:21]} 9. h3 {[%emt 0:03:12] D35: Queen's Gambit Declined: Exchange Variation.} Re8 {[%emt 0:04:43]} 10. Nf3 {[%emt 0:05:26]} Bd6 {[%emt 0:02:37] [#] aiming for ...Bxf4.} 11. Bxd6 {[%emt 0:09:23] White is slightly better.} Qxd6 {[%emt 0:00:06]} 12. O-O {[%emt 0:00:54]} Nbd7 {[%emt 0:11:14] The position is equal.} 13. Rb1 {[%emt 0:05:22]} Ne4 {[%emt 0:06:01]} 14. Qc2 {[%emt 0:05:10][%cal Rc3e4] [#]} Ndf6 $146 {[%emt 0:05:57]} ({Predecessor:} 14... Nxc3 15. Qxc3 Nf6 16. Nd2 Be6 17. Rfc1 Rac8 18. b4 Qd7 19. Qc2 Red8 20. Rb2 Ne8 {0-1 (38) Semova,L (1420)-Stankic,A (1330) Bratislava 2019}) 15. Ne5 {[%emt 0:04:39]} Bf5 {[%emt 0:04:43]} 16. f3 {[%emt 0:07:45]} Nxc3 {[%emt 0:01:00]} 17. bxc3 {[%emt 0:00:20]} Bxd3 {[%emt 0:01:15]} 18. Qxd3 {[%emt 0:00:29]} Re7 {[%emt 0:02:11]} 19. Rbd1 {[%emt 0:14:34] Weighted Error Value: White=0.09 (flawless) /Black=0.04 (flawless)} 1/2-1/2

[Event "Fall GM-B Norm Invitational 2022"]
[Site "Charlotte"]
[Date "2022.11.20"]
[Round "5"]
[White "Woodward, Andy"]
[Black "Ozenir, Ekin Baris"]
[Result "1/2-1/2"]
[ECO "E00"]
[WhiteElo "2447"]
[BlackElo "2352"]
[Annotator "TA"]
[PlyCount "104"]
[EventDate "2022.11.18"]
[EventType "tourn"]
[EventCountry "USA"]
[SourceTitle "playchess.com"]
[Source "ChessBase"]
[SourceQuality "1"]
[TimeControl "5400+30"]

{[%evp 12,104,31,31,58,64,62,57,56,53,56,56,57,56,72,72,78,83,93,86,95,102,98,57,117,81,87,79,67,49,46,45,90,86,95,98,101,20,74,31,110,66,67,63,133,132,150,152,138,147,195,161,172,195,275,161,300,311,277,135,127,127,126,116,108,93,86,30,67,15,16,26,31,2,25,0,29,29,29,30,31,26,34,24,25,0,76,0,0,0,0,0,0,0,0]} 1. d4 {[%emt 0:04:50]} e6 {[%emt 0:00:15]} 2. c4 {[%emt 0:00:16]} Nf6 {[%emt 0:00:14]} 3. g3 {[%emt 0:00:11]} Bb4+ {[%emt 0:01:31]} 4. Bd2 {[%emt 0:00:18]} Qe7 {[%emt 0:00:27]} 5. Bg2 {[%emt 0:00:47]} Nc6 {[%emt 0:00:28]} 6. e3 {[%emt 0:03:07]} Bxd2+ {[%emt 0:04:39]} 7. Qxd2 {[%emt 0:00:36]} d6 {[%emt 0:03:03] E00: Catalan Bogo-Indian (3 g3 Bb4+).} 8. Nc3 {[%emt 0:02:53]} O-O {[%emt 0:00:58]} 9. Nge2 {[%emt 0:01:25]} e5 {[%emt 0:02:23] White is slightly better.} 10. Nd5 {[%emt 0:03:35]} Qd8 {[%emt 0:00:59]} 11. O-O {[%emt 0:00:24] [#]} exd4 $146 {[%emt 0:04:31]} ({Predecessor:} 11... Re8 12. Nxf6+ Qxf6 13. d5 Nb8 14. Nc3 Qh6 15. b4 Bh3 16. Nb5 Bxg2 17. Kxg2 Re7 18. f3 {½-½ (18) Blagojevic,D (2506)-Savic,M (2506) Mosko 2015}) 12. Nxd4 {[%emt 0:02:26]} Ne5 {[%emt 0:12:57]} 13. b3 {[%emt 0:04:45]} c6 {[%emt 0:04:07]} 14. Nc3 {[%emt 0:01:14]} Qb6 {[%emt 0:08:40]} 15. f4 {[%emt 0:04:06]} Ng6 {[%emt 0:02:14]} 16. e4 {[%emt 0:05:09]} Bd7 {[%emt 0:02:14]} 17. h3 {[%emt 0:01:57]} h5 {[%emt 0:02:11]} ({Black should play} 17... Rad8 $14) 18. Kh2 {[%emt 0:02:58]} Rfe8 {[%emt 0:03:20]} 19. Rad1 {[%emt 0:11:42]} Rad8 {[%emt 0:00:27]} 20. Nc2 {[%emt 0:14:50]} Bc8 {[%emt 0:01:51]} 21. Ne3 {[%emt 0:08:57]} Kh8 {[%emt 0:01:52]} 22. Qf2 {[%emt 0:03:27]} Qa5 {[%emt 0:01:40] [#]} 23. Rd3 {[%emt 0:00:12]} a6 {[%emt 0:01:10]} 24. a4 {[%emt 0:03:48]} (24. Rfd1 $16) 24... Kg8 {[%emt 0:10:31]} (24... Nd7 $11 {remains equal.}) 25. Rfd1 {[%emt 0:02:18]} Qc7 {[%emt 0:05:00]} (25... Nf8 $14) 26. Bf3 {[%emt 0:02:47]} Qa5 $1 {[%emt 0:01:42]} 27. Ng2 {[%emt 0:00:22]} b5 {[%emt 0:04:06]} (27... Qc7 $1 $14) 28. axb5 $16 {[%emt 0:00:32]} axb5 {[%emt 0:00:02]} 29. cxb5 {[%emt 0:00:51]} cxb5 {[%emt 0:00:01]} 30. b4 {[%emt 0:01:18]} Qc7 {[%emt 0:02:39]} (30... Qxb4 $16 31. e5 Nd7) 31. Nxb5 $18 {[%emt 0:00:50]} Qd7 {[%emt 0:00:58]} 32. Nxd6 {[%emt 0:00:05] Active counter play!} Qxh3+ {[%emt 0:00:28]} 33. Kg1 {[%emt 0:00:03]} Rf8 {[%emt 0:07:47]} (33... Rxd6 {was worth a try.} 34. Rxd6 Nxe4 35. Bxe4 Rxe4) 34. f5 {[%emt 0:01:41]} h4 {[%emt 0:00:04]} 35. Nf4 {[%emt 0:02:03]} (35. gxh4 Ne5 36. Be2 (36. Nf4 Nxf3+ 37. Qxf3 Qxf3 $11) 36... Nxd3 37. Rxd3 Qxd3 38. Bxd3 Rxd6 $16) (35. Nxh4 $18 {is the precise move to win.} Ne5 36. Rd4) 35... hxg3 $16 {[%emt 0:00:41]} 36. Nxh3 {[%emt 0:00:04] Really sharp!} gxf2+ {[%emt 0:00:03]} 37. Kxf2 {[%emt 0:00:07]} Ne5 {[%emt 0:00:13]} 38. R3d2 {[%emt 0:00:15]} Bd7 {[%emt 0:00:55]} 39. Nf4 {[%emt 0:01:56]} (39. Ng5 $16) 39... Rb8 {[%emt 0:01:03]} 40. Nd3 {[%emt 0:01:37]} ({White should try} 40. Rb1 $14) 40... Nxd3+ $11 {[%emt 0:02:26]} 41. Rxd3 {[%emt 0:00:05]} Rxb4 {[%emt 0:00:04]} 42. Rg1 {[%emt 0:01:41] Threatens to win with e5.} Bc6 {[%emt 0:06:32]} 43. e5 {[%emt 0:01:27]} Nd7 {[%emt 0:02:20]} 44. Bxc6 {[%emt 0:03:10]} Nxe5 {[%emt 0:00:02]} 45. Rc3 {[%emt 0:00:20]} Rd8 {[%emt 0:00:07] [#]} 46. Be4 $1 {[%emt 0:02:48][%cal Of5f6] aiming for f6!} g6 {[%emt 0:01:32]} (46... Rxd6 {is a self mate.} 47. Rc8+ Kh7 48. f6+ Rxe4 49. Rxg7+ Kh6 50. Rh8#) (46... Kf8 47. Nb7) 47. Nb7 {[%emt 0:01:35]} ({Don't do} 47. Rc5 $6 Rxe4 48. Nxe4 Nd3+ 49. Kg3 Nxc5 50. Nxc5 Rd5 $16) 47... Rdd4 {[%emt 0:00:50]} 48. fxg6 {[%emt 0:01:45][%cal Og6g7] And now g7! would win.} fxg6 {[%emt 0:01:06]} (48... Rxe4 $11 49. Rc8+ (49. gxf7+ Kxf7 50. Nd6+ Ke6 $14) 49... Kg7 50. gxf7+ Kxf7 51. Nd6+ Ke7 52. Nxe4 Rxe4) 49. Bxg6 {[%emt 0:00:55]} (49. Bg2 $16) 49... Rg4 {[%emt 0:00:46] The position is equal.} 50. Rxg4 {[%emt 0:00:24]} Nxg4+ {[%emt 0:00:02]} 51. Kg3 {[%emt 0:00:06]} Ne5 {[%emt 0:00:03]} 52. Rc7 {[%emt 0:00:45]} Rg4+ {[%emt 0:00:18] Black escapes into a draw.  Weighted Error Value: White=0.18 (very precise) /Black=0.22 (precise)} 1/2-1/2

[Event "Fall GM-B Norm Invitational 2022"]
[Site "Charlotte"]
[Date "2022.11.20"]
[Round "5"]
[White "Hilby, Craig"]
[Black "Korley, Kassa"]
[Result "0-1"]
[ECO "D45"]
[WhiteElo "2411"]
[BlackElo "2451"]
[Annotator "TA"]
[PlyCount "176"]
[EventDate "2022.11.18"]
[EventType "tourn"]
[EventCountry "USA"]
[SourceTitle "playchess.com"]
[Source "ChessBase"]
[SourceQuality "1"]
[TimeControl "5400+30"]

{[%evp 21,176,4,8,0,0,0,-7,-1,0,-16,0,-69,-71,-141,-148,-138,-139,-220,-115,-121,-124,-114,-106,-130,-112,-113,-113,-115,-112,-112,-116,-112,-110,-117,-114,-113,-110,-110,-93,-110,-108,-100,-97,-100,-100,-101,-98,-98,-93,-94,-93,-110,-110,-110,-87,-89,-87,-89,-87,-87,-87,-89,-89,-96,-87,-94,-87,-87,-80,-80,-80,-80,-80,-89,-83,-96,-89,-89,-89,-89,-89,-89,-89,-107,-73,-87,-87,-105,-97,-97,-97,-97,-70,-119,-116,-123,-123,-123,-123,-123,-123,-130,-123,-139,-123,-123,-123,-123,-123,-123,-95,-107,0,-123,-95,-123,-123,-123,-110,-123,-105,-126,-126,-126,-126,-126,-126,-126,-126,-127,-144,-151,-151,-146,-141,-141,-141,-141,-126,-202,-205,-202,-143,-409,-358,-865,-793,-683,-575,-1285,-1285,-1122,-1070,-29985,-29986,-29991,-29992]} 1. c4 {[%emt 0:03:26]} c6 {[%emt 0:00:05]} 2. Nf3 {[%emt 0:00:13]} d5 {[%emt 0:00:08]} 3. e3 {[%emt 0:00:20]} Nf6 {[%emt 0:00:05]} 4. Nc3 {[%emt 0:00:05]} e6 {[%emt 0:00:06]} 5. d4 {[%emt 0:01:31]} Nbd7 {[%emt 0:00:03]} 6. Qc2 {[%emt 0:00:06]} Bd6 {[%emt 0:00:06]} 7. b3 {[%emt 0:00:39]} O-O {[%emt 0:01:17]} 8. Be2 {[%emt 0:00:54]} b6 {[%emt 0:04:52]} 9. O-O {[%emt 0:00:51]} Bb7 {[%emt 0:00:02]} 10. Bb2 {[%emt 0:00:16]} Qe7 {[%emt 0:02:37]} 11. a4 {[%emt 0:00:12]} a5 {[%emt 0:03:06]} 12. Rfe1 {[%emt 0:00:39] [#] 12.Rad1 is a critical line. D45: Semi-Slav: 5 e3.} Bb4 $146 {[%emt 0:01:24]} ({Predecessor:} 12... Rfe8 13. Rad1 Rad8 14. h3 h6 15. Bd3 Bb4 16. Rf1 Bd6 17. Rfe1 Bb4 18. Re2 Qf8 19. Na2 Be7 {½-½ (52) Granz,T (2062)-Pidoyma,V (2073) ICCF email 2019}) 13. Bd3 {[%emt 0:03:47]} c5 {[%emt 0:02:11]} 14. Nd2 {[%emt 0:22:21] The position is equal.} Rac8 {[%emt 0:10:52]} 15. Rac1 {[%emt 0:09:33]} Rfd8 {[%emt 0:06:10]} 16. Qb1 {[%emt 0:09:27]} (16. Nb5 $11) 16... Nf8 {[%emt 0:00:55]} 17. cxd5 {[%emt 0:06:01]} (17. Re2 $142) 17... cxd4 $17 {[%emt 0:00:36]} (17... Nxd5 $6 18. Nxd5 Bxd5 19. Red1 $11) (17... exd5 18. Re2 $11) 18. exd4 {[%emt 0:00:51]} Nxd5 {[%emt 0:08:13]} 19. Nc4 {[%emt 0:08:54]} (19. Nxd5 $17 {keeps fighting.} Bxd5 20. Rxc8 Rxc8 21. Qd1 (21. Rc1 Rxc1+ 22. Bxc1 Bxg2 $17)) 19... Nxc3 {[%emt 0:02:23]} ({Black should try} 19... Nf4 $1 $19 {[%cal Rf4g2]} 20. Be4 Rxd4) 20. Bxc3 {[%emt 0:00:04]} Bxc3 {[%emt 0:00:06]} 21. Rxc3 {[%emt 0:00:08]} Rxd4 {[%emt 0:00:07]} 22. Be4 {[%emt 0:02:24]} Bxe4 {[%emt 0:08:26]} 23. Rxe4 {[%emt 0:00:07]} Rxe4 {[%emt 0:01:30]} 24. Qxe4 {[%emt 0:00:03]} Qb4 {[%emt 0:00:06]} 25. Qd3 {[%emt 0:09:46]} b5 {[%emt 0:09:55]} 26. axb5 {[%emt 0:00:15]} a4 {[%emt 0:00:06] Strongly threatening ...axb3.} 27. b6 {[%emt 0:08:54]} (27. bxa4 $2 Rd8 $3 {[%mdl 512]} 28. Ne3 (28. Qc2 $2 Qxc3 29. Qe2 Qa1+ 30. Qf1 Rd1 $19) 28... Rxd3 $19) 27... axb3 {[%emt 0:13:48]} 28. b7 {[%emt 0:00:09]} Qxb7 {[%emt 0:02:01]} 29. Rxb3 {[%emt 0:00:19]} Qa6 {[%emt 0:04:27]} 30. Ne3 {[%emt 0:01:49]} Rc1+ {[%emt 0:00:10]} 31. Nf1 {[%emt 0:00:02]} Qa1 {[%emt 0:01:24]} 32. Rb8 {[%emt 0:01:38][%cal Ob8f8] Intending Rxf8+! and mate.} g6 {[%emt 0:00:06]} 33. g3 {[%emt 0:00:24]} Rd1 {[%emt 0:01:45]} 34. Qb5 {[%emt 0:01:15]} Kg7 {[%emt 0:00:49]} 35. Kg2 {[%emt 0:00:26][%cal Ob5e8] And now Qe8! would win.} Nd7 {[%emt 0:01:06]} 36. Qb2+ {[%emt 0:02:11]} Qxb2 {[%emt 0:00:50] Active counter play!} 37. Rxb2 {[%emt 0:00:02][%mdl 4096] Endgame KRN-KRN} Ne5 {[%emt 0:02:01]} 38. Ne3 {[%emt 0:00:32]} Rd7 {[%emt 0:00:08]} 39. h4 {[%emt 0:00:23]} h6 {[%emt 0:00:07]} 40. Re2 {[%emt 0:00:54]} Nd3 {[%emt 0:00:12]} 41. Ng4 {[%emt 0:00:38]} Rd5 {[%emt 0:00:59]} 42. Ra2 {[%emt 0:03:21]} Rb5 {[%emt 0:00:10]} 43. Rd2 {[%emt 0:00:45]} Rb3 {[%emt 0:00:26]} 44. Re2 {[%emt 0:00:24]} Nb4 {[%emt 0:00:34]} 45. Ne5 {[%emt 0:01:01]} Nd5 {[%emt 0:00:17]} 46. Ra2 {[%emt 0:00:23]} Rb7 {[%emt 0:00:04] Inhibits Ra7.} 47. Re2 {[%emt 0:01:08]} Rc7 {[%emt 0:00:15]} 48. Rb2 {[%emt 0:00:39]} g5 {[%emt 0:01:04]} 49. hxg5 {[%emt 0:00:02]} hxg5 {[%emt 0:00:03]} 50. Re2 {[%emt 0:00:36]} f6 {[%emt 0:03:33][%cal Bf7f6,Bf6f5][%mdl 32] aiming for ...Nc3.} 51. Ng4 {[%emt 0:00:30]} Kf7 {[%emt 0:00:30]} 52. Ne3 {[%emt 0:00:44]} Ne7 {[%emt 0:00:13]} 53. Ng4 {[%emt 0:00:36]} f5 {[%emt 0:00:42]} 54. Ne3 {[%emt 0:01:21]} g4 {[%emt 0:00:21]} 55. f3 {[%emt 0:01:38] [#]} gxf3+ $1 {[%emt 0:00:12]} 56. Kxf3 {[%emt 0:00:02]} Kf6 {[%emt 0:03:10]} 57. Rc2 {[%emt 0:02:43]} ({White should play} 57. g4 $15) 57... Ra7 {[%emt 0:00:04]} 58. Rc3 {[%emt 0:00:15]} Ng6 {[%emt 0:00:25]} 59. Rc2 {[%emt 0:00:41]} Ne5+ {[%emt 0:00:29]} 60. Kf2 {[%emt 0:00:15]} Ra6 {[%emt 0:01:48]} 61. Rc8 {[%emt 0:00:30]} Ra4 {[%emt 0:01:08]} 62. Rf8+ {[%emt 0:00:22]} Ke7 {[%emt 0:00:13]} 63. Rc8 {[%emt 0:00:24]} Ra2+ {[%emt 0:02:08]} 64. Rc2 {[%emt 0:00:43]} Ra8 {[%emt 0:00:16]} 65. Rc3 {[%emt 0:00:28]} Nd7 {[%emt 0:00:46]} 66. Rc4 {[%emt 0:00:23]} Ne5 {[%emt 0:01:35]} 67. Rc3 $1 {[%emt 0:00:08]} Rh8 {[%emt 0:00:05]} 68. Kg2 {[%emt 0:00:54]} Kf6 {[%emt 0:00:03]} 69. Rc7 {[%emt 0:00:40]} Nf7 {[%emt 0:00:24]} 70. Rc4 {[%emt 0:00:26]} Rg8 {[%emt 0:01:25]} 71. Kf2 {[%emt 0:00:18]} Nd6 {[%emt 0:00:06]} 72. Rc6 {[%emt 0:00:53]} Ne4+ {[%emt 0:00:35]} 73. Kf3 {[%emt 0:00:04]} Ke5 {[%emt 0:02:57]} ({Of course not} 73... Nxg3 $6 74. Nd5+ Ke5 75. Nf4 $11) ({Not} 73... Rxg3+ 74. Kf4 $15) 74. Nf1 {[%emt 0:00:26]} Ra8 {[%emt 0:00:05]} 75. Rc2 {[%emt 0:01:03] Prevents Ra2.} Ra3+ {[%emt 0:00:07]} 76. Kg2 {[%emt 0:00:22]} Kf6 {[%emt 0:00:27]} 77. Re2 {[%emt 0:00:29][%cal Og3g4]} Kg5 {[%emt 0:00:24]} 78. Ne3 {[%emt 0:00:37]} Rd3 {[%emt 0:01:03] White must now prevent ...Nc3.} 79. Nf1 {[%emt 0:00:41]} e5 {[%emt 0:01:58][%cal Be6e5,Be5e4,Be4e3,Be3e2][%mdl 32]} 80. Ne3 {[%emt 0:00:28]} (80. Re3 $17 {is a better defense.} Rd6 81. Nh2) 80... Nc3 $19 {[%emt 0:01:19]} 81. Re1 {[%emt 0:00:19]} Rd2+ {[%emt 0:00:04]} 82. Kg1 $2 {[%emt 0:00:39][%mdl 8192] This move loses the game for White.} (82. Kh1 $17 {was forced.}) 82... e4 {[%emt 0:02:40] ...Ne2+ is the strong threat.} 83. Rf1 $2 {[%emt 0:00:34]} (83. Nc4 Rd4 84. Ne3) 83... Ne2+ {[%emt 0:00:25]} 84. Kg2 {[%emt 0:00:18]} Nd4+ {[%emt 0:00:23]} 85. Rf2 {[%emt 0:00:07]} Rd3 {[%emt 0:00:01]} 86. Nd5 {[%emt 0:00:41] [#]} e3 $1 {[%emt 0:01:44] ( -> ...e2)} 87. Rf1 {[%emt 0:00:57]} Rd2+ {[%emt 0:00:17]} 88. Kh3 {[%emt 0:00:26]} e2 {[%emt 0:00:11] Weighted Error Value: White=0.13 (very precise) /Black=0.07 (flawless)} 0-1